lending/lending_fUSD_20250122
["ID","MTS","AMOUNT","RATE_DAILY","PERIOD"]
[350040516,1737588642919,-500.0,0.00020821,2]
[350040517,1737588642929,-2456.01,0.00020821,2]
[350040518,1737588642939,-500.0,0.00020821,2]
[350040519,1737588642949,-1112.05,0.00020821,2]
[350040520,1737588642958,-500.0,0.00020821,2]
[350040521,1737588642967,-500.0,0.00020821,2]
[350040522,1737588642976,-500.0,0.00020821,2]
[350040523,1737588642986,-500.0,0.00020821,2]
[350040524,1737588642995,-500.0,0.00020821,2]
[350040525,1737588643004,-502.34,0.00020821,2]
[350040526,1737588643013,-500.0,0.00020821,2]
[350040527,1737588643023,-500.0,0.00020821,2]
[350040528,1737588643032,-2596.65361411,0.00020826,2]
[350040529,1737588643041,-6536.68011702,0.00020831,2]
[350040531,1737588643052,-341.80529397,0.00020831,2]
[350040533,1737588643061,-56281.7572014,0.00020834,2]
[350040535,1737588643070,-3350.2604288,0.00020834,2]
[350040538,1737588643080,-56281.7572014,0.00020838,2]
[350040540,1737588643089,-341.80529397,0.00020841,2]
[350040541,1737588643098,-13804.79330969,0.00020843,2]
[350040542,1737588643108,-56281.7572014,0.00020845,2]
[350040543,1737588643117,-6536.68011702,0.00020849,2]
[350040544,1737588643127,-2596.65361411,0.00020854,2]
[350040545,1737588643141,-2926.95975569,0.00020863,2]
[350040546,1737588643151,-6536.68011702,0.00020866,2]
[350040547,1737588643162,-3350.2604288,0.00020867,2]
[350040548,1737588643171,-13804.79330969,0.00020868,2]
[350040549,1737588643180,-2926.95975569,0.0002087,2]
[350040550,1737588643189,-2926.95975569,0.00020871,2]
[350040551,1737588643198,-200.0,0.00020874,2]
[350040552,1737588643208,-341.80529397,0.00020876,2]
[350040553,1737588643218,-3350.2604288,0.0002088,2]
[350040554,1737588643227,-200.0,0.00020881,2]
[350040555,1737588643237,-13804.79330969,0.00020886,2]
[350040556,1737588643246,-3350.2604288,0.00020888,2]
[350040557,1737588643255,-6536.68011702,0.00020889,2]
[350040558,1737588643265,-200.0,0.00020893,2]
[350040559,1737588643274,-200.0,0.00020894,2]
[350040560,1737588643283,-200.0,0.00020899,2]
[350040561,1737588643292,-341.80529397,0.00020901,2]
[350040562,1737588643302,-200.0,0.00020902,2]
[350040563,1737588643311,-2926.95975569,0.00020918,2]
[350040564,1737588643320,-200.0,0.00020923,2]
[350040565,1737588643329,-2926.95975569,0.00020928,2]
[350040566,1737588643339,-3350.2604288,0.00020934,2]
[350040567,1737588643348,-56281.7572014,0.00020943,2]
[350040568,1737588643357,-341.80529397,0.00020947,2]
[350040569,1737588643367,-13804.79330969,0.00020947,2]
[350040570,1737588643375,-519.661,0.00021,2]
[350040571,1737588643387,-500.0,0.0002102,2]
[350040572,1737588643396,-500.0,0.0002102,2]
[350040573,1737588643406,-500.0,0.0002102,2]
[350040574,1737588643419,-500.0,0.0002102,2]
[350040575,1737588643428,-500.0,0.0002102,2]
[350040576,1737588643436,-500.0,0.0002102,2]
[350040577,1737588643446,-500.0,0.0002102,2]
[350040578,1737588643458,-649.84746143,0.0002102,2]
[350040579,1737588643467,-500.0,0.0002102,2]
[350040580,1737588643476,-500.0,0.0002102,2]
[350040581,1737588643486,-160.58,0.0002102,2]
[350040582,1737588643496,-500.0,0.0002102,2]
[350040583,1737588643505,-500.0,0.0002102,2]
[350040584,1737588643514,-500.0,0.0002102,2]
[350040585,1737588643523,-500.0,0.0002102,2]
[350040586,1737588643532,-500.0,0.0002102,2]
[350040587,1737588643541,-500.0,0.0002102,2]
[350040588,1737588643550,-500.0,0.0002102,2]
[350040589,1737588643559,-500.0,0.0002102,2]
[350040590,1737588643568,-500.0,0.0002102,2]
[350040591,1737588643577,-500.0,0.0002102,2]
[350040592,1737588643586,-500.0,0.0002102,2]
[350040593,1737588643595,-212.41253456,0.00021067,2]
[350040594,1737588643603,-692.25,0.00021095,2]
[350040595,1737588643613,-500.0,0.00021095,2]
[350040596,1737588643622,-500.0,0.00021095,2]
[350040597,1737588643631,-982.92,0.00021095,2]
[350040598,1737588643643,-1449.15,0.00021095,2]
[350040599,1737588643652,-945.65,0.00021095,2]
[350040600,1737588643661,-1447.07,0.00021095,2]
[350040601,1737588643670,-1267.16,0.00021095,2]
[350040602,1737588643679,-597.02,0.00021095,2]
[350040603,1737588643688,-1722.24,0.00021095,2]
[350040604,1737588643697,-673.01,0.00021095,2]
[350040605,1737588643705,-716.85,0.00021095,2]
[350040606,1737588643714,-1651.07,0.00021095,2]
[350040607,1737588643722,-581.16,0.00021095,2]
[350040608,1737588643731,-2649.57,0.00021095,2]
[350040609,1737588643740,-500.0,0.00021095,2]
[350040610,1737588643748,-500.0,0.00021095,2]
[350040612,1737588643758,-500.0,0.00021095,2]
[350040613,1737588643767,-500.0,0.00021095,2]
[350040614,1737588643775,-684.71,0.00021095,2]
[350040615,1737588643784,-500.0,0.00021095,2]
[350040616,1737588643792,-500.0,0.00021095,2]
[350040617,1737588643801,-2456.01,0.00021095,2]
[350040618,1737588643811,-500.0,0.00021095,2]
[350040619,1737588643820,-1112.05,0.00021095,2]
[350040620,1737588643829,-500.0,0.00021095,2]
[350040621,1737588643838,-500.0,0.00021095,2]
[350040622,1737588643847,-500.0,0.00021095,2]
[350040623,1737588643856,-500.0,0.00021095,2]
[350040624,1737588643866,-502.34,0.00021095,2]
[350040625,1737588643875,-500.0,0.00021095,2]
[350040626,1737588643892,-500.0,0.00021095,2]
[350040627,1737588643902,-182.8823318,0.00021153,2]
[350040628,1737588643911,-500.0,0.00021153,2]
[350040629,1737588643920,-418.9605331,0.00021215,2]
[350040630,1737588643929,-500.0,0.00021294,2]
[350040631,1737588643938,-500.0,0.00021294,2]
[350040632,1737588643947,-500.0,0.00021294,2]
[350040633,1737588643956,-500.0,0.00021294,2]
[350040634,1737588643965,-500.0,0.00021294,2]
[350040635,1737588643975,-500.0,0.00021294,2]
[350040636,1737588643984,-500.0,0.00021294,2]
[350040637,1737588643993,-500.0,0.00021294,2]
[350040638,1737588644002,-500.0,0.00021294,2]
[350040639,1737588644012,-500.0,0.00021294,2]
[350040640,1737588644021,-500.0,0.00021294,2]
[350040641,1737588644031,-500.0,0.00021294,2]
[350040642,1737588644041,-500.0,0.00021294,2]
[350040643,1737588644050,-500.0,0.00021294,2]
[350040644,1737588644059,-500.0,0.00021294,2]
[350040645,1737588644068,-500.0,0.00021294,2]
[350040646,1737588644077,-692.25,0.00021369,2]
[350040647,1737588644087,-500.0,0.00021369,2]
[350040648,1737588644097,-500.0,0.00021369,2]
[350040649,1737588644106,-982.92,0.00021369,2]
[350040650,1737588644116,-1449.15,0.00021369,2]
[350040651,1737588644126,-945.65,0.00021369,2]
[350040652,1737588644142,-1447.07,0.00021369,2]
[350040653,1737588644152,-1267.16,0.00021369,2]
[350040654,1737588644161,-597.02,0.00021369,2]
[350040655,1737588644171,-1722.24,0.00021369,2]
[350040656,1737588644181,-673.01,0.00021369,2]
[350040657,1737588644190,-716.85,0.00021369,2]
[350040658,1737588644199,-1651.07,0.00021369,2]
[350040659,1737588644209,-581.16,0.00021369,2]
[350040660,1737588644218,-2649.57,0.00021369,2]
[350040661,1737588644227,-500.0,0.00021369,2]
[350040662,1737588644235,-500.0,0.00021369,2]
[350040663,1737588644244,-500.0,0.00021369,2]
[350040664,1737588644254,-684.71,0.00021369,2]
[350040665,1737588644403,-500.0,0.00021369,2]
[350040666,1737588644412,-500.0,0.00021369,2]
[350040667,1737588644424,-2456.01,0.00021369,2]
[350040668,1737588644434,-500.0,0.00021369,2]
[350040669,1737588644444,-1112.05,0.00021369,2]
[350040670,1737588644453,-500.0,0.00021369,2]
[350040671,1737588644466,-500.0,0.00021369,2]
[350040672,1737588644476,-500.0,0.00021369,2]
[350040673,1737588644485,-500.0,0.00021369,2]
[350040674,1737588644495,-502.34,0.00021369,2]
[350040675,1737588644505,-500.0,0.00021369,2]
[350040676,1737588644514,-500.0,0.00021369,2]
[350040677,1737588644523,-1528.39169361,0.00021467,2]
[350040678,1737588644533,-1000.0,0.00021467,2]
[350040679,1737588644542,-7316.0683,0.00021467,2]
[350040680,1737588644551,-4457.7342,0.00021467,2]
[350040681,1737588644561,-565.18,0.000215,2]
[350040682,1737588644570,-1528.39169353,0.00021515,2]
[350040683,1737588644579,-1172.0,0.00021516,2]
[350040684,1737588644588,-3903.0,0.00021516,2]
[350040685,1737588644597,-150.0,0.00021516,2]
[350040686,1737588644606,-1528.39169353,0.00021563,2]
[350040687,1737588644615,-500.0,0.00021567,2]
[350040688,1737588644624,-500.0,0.00021567,2]
[350040689,1737588644637,-386.52,0.00021567,2]
[350040690,1737588644648,-500.0,0.00021567,2]
[350040691,1737588644658,-500.0,0.00021567,2]
[350040692,1737588644667,-764.7,0.00021567,2]
[350040693,1737588644676,-500.0,0.00021567,2]
[350040694,1737588644685,-500.0,0.00021567,2]
[350040695,1737588644695,-500.0,0.00021567,2]
[350040696,1737588644703,-500.0,0.00021567,2]
[350040697,1737588644712,-500.0,0.00021567,2]
[350040698,1737588644721,-500.0,0.00021567,2]
[350040699,1737588644731,-500.0,0.00021567,2]
[350040700,1737588644740,-500.0,0.00021567,2]
[350040701,1737588644751,-500.0,0.00021567,2]
[350040702,1737588644761,-500.0,0.00021567,2]
[350040703,1737588644771,-500.0,0.00021567,2]
[350040704,1737588644780,-500.0,0.00021567,2]
[350040705,1737588644789,-534.88,0.00021567,2]
[350040706,1737588644798,-500.0,0.00021567,2]
[350040707,1737588644807,-500.0,0.00021567,2]
[350040708,1737588644816,-500.0,0.00021567,2]
[350040709,1737588644825,-500.0,0.00021567,2]
[350040710,1737588644834,-500.0,0.00021567,2]
[350040711,1737588644843,-500.0,0.00021567,2]
[350040712,1737588644852,-500.0,0.00021567,2]
[350040713,1737588644861,-500.0,0.00021567,2]
[350040714,1737588644870,-500.0,0.00021567,2]
[350040715,1737588644879,-500.0,0.00021567,2]
[350040716,1737588644896,-500.0,0.00021567,2]
[350040717,1737588644905,-500.0,0.00021567,2]
[350040718,1737588644914,-609.29,0.00021567,2]
[350040719,1737588644923,-573.62,0.00021567,2]
[350040720,1737588644932,-500.0,0.00021567,2]
[350040721,1737588644941,-608.08,0.00021567,2]
[350040722,1737588644950,-760.26,0.00021567,2]
[350040723,1737588644959,-579.96,0.00021567,2]
[350040724,1737588644968,-500.0,0.00021567,2]
[350040725,1737588644977,-500.0,0.00021567,2]
[350040726,1737588644986,-500.0,0.00021567,2]
[350040727,1737588644995,-500.0,0.00021567,2]
[350040728,1737588645004,-2467.98,0.00021567,2]
[350040729,1737588645014,-500.0,0.00021567,2]
[350040730,1737588645024,-500.0,0.00021567,2]
[350040731,1737588645033,-500.0,0.00021567,2]
[350040732,1737588645042,-2982.03,0.00021567,2]
[350040733,1737588645052,-500.0,0.00021567,2]
[350040734,1737588645062,-1185.49,0.00021567,2]
[350040735,1737588645071,-500.0,0.00021567,2]
[350040736,1737588645081,-500.0,0.00021567,2]
[350040737,1737588645090,-1579.05,0.00021567,2]
[350040738,1737588645100,-500.0,0.00021567,2]
[350040739,1737588645109,-500.0,0.00021567,2]
[350040740,1737588645118,-500.0,0.00021567,2]
[350040741,1737588645128,-1041.69,0.00021567,2]
[350040742,1737588645143,-448.08348432,0.00021567,2]
[350040743,1737588645152,-500.0,0.00021567,2]
[350040744,1737588645161,-813.51,0.00021567,2]
[350040745,1737588645171,-500.0,0.00021567,2]
[350040746,1737588645180,-500.0,0.00021567,2]
[350040747,1737588645189,-500.0,0.00021567,2]
[350040748,1737588645199,-500.0,0.00021567,2]
[350040749,1737588645208,-500.0,0.00021567,2]
[350040750,1737588645217,-500.0,0.00021567,2]
[350040751,1737588645227,-500.0,0.00021567,2]
[350040752,1737588645236,-3165.99,0.00021567,2]
[350040753,1737588645245,-500.0,0.00021567,2]
[350040754,1737588645255,-1719.99,0.00021567,2]
[350040755,1737588645265,-500.0,0.00021567,2]
[350040756,1737588645274,-500.0,0.00021567,2]
[350040757,1737588645283,-792.87,0.00021567,2]
[350040758,1737588645292,-500.0,0.00021567,2]
[350040759,1737588645302,-500.0,0.00021567,2]
[350040760,1737588645311,-500.0,0.00021567,2]
[350040761,1737588645320,-500.0,0.00021567,2]
[350040762,1737588645329,-500.0,0.00021567,2]
[350040763,1737588645339,-500.0,0.00021567,2]
[350040764,1737588645348,-500.0,0.00021567,2]
[350040765,1737588645357,-500.0,0.00021567,2]
[350040766,1737588645366,-500.0,0.00021567,2]
[350040767,1737588645375,-500.0,0.00021567,2]
[350040768,1737588645385,-1154.75,0.00021567,2]
[350040769,1737588645397,-500.0,0.00021567,2]
[350040770,1737588645408,-1438.05,0.00021567,2]
[350040771,1737588645420,-500.0,0.00021567,2]
[350040772,1737588645438,-500.0,0.00021567,2]
[350040773,1737588645448,-500.0,0.00021567,2]
[350040774,1737588645460,-500.0,0.00021567,2]
[350040775,1737588645471,-500.0,0.00021567,2]
[350040776,1737588645481,-500.0,0.00021567,2]
[350040777,1737588645491,-500.0,0.00021567,2]
[350040778,1737588645502,-664.73,0.00021567,2]
[350040779,1737588645512,-500.0,0.00021567,2]
[350040780,1737588645521,-1479.14,0.00021567,2]
[350040781,1737588645531,-500.0,0.00021567,2]
[350040782,1737588645540,-500.0,0.00021567,2]
[350040783,1737588645550,-500.0,0.00021567,2]
[350040784,1737588645559,-500.0,0.00021567,2]
[350040785,1737588645572,-666.45,0.00021567,2]
[350040786,1737588645582,-586.23845839,0.00021567,2]
[350040787,1737588645591,-500.0,0.00021567,2]
[350040788,1737588645600,-510.72861144,0.00021567,2]
[350040789,1737588645610,-500.0,0.00021567,2]
[350040790,1737588645620,-506.81346388,0.00021567,2]
[350040791,1737588645629,-702.83,0.00021567,2]
[350040792,1737588645643,-500.0,0.00021567,2]
[350040793,1737588645652,-501.21750696,0.00021567,2]
[350040794,1737588645662,-845.76,0.00021567,2]
[350040795,1737588645671,-500.0,0.00021567,2]
[350040796,1737588645681,-500.0,0.00021567,2]
[350040797,1737588645690,-500.0,0.00021567,2]
[350040798,1737588645700,-503.6489101,0.00021567,2]
[350040799,1737588645709,-500.0,0.00021567,2]
[350040800,1737588645719,-500.0,0.00021567,2]
[350040802,1737588645728,-1325.95,0.00021567,2]
[350040803,1737588645737,-500.0,0.00021567,2]
[350040804,1737588645746,-500.0,0.00021567,2]
[350040805,1737588645755,-500.0,0.00021567,2]
[350040806,1737588645764,-267.4126664,0.00021567,2]
[350040807,1737588645773,-500.0,0.00021567,2]
[350040808,1737588645783,-505.15357376,0.00021567,2]
[350040809,1737588645792,-1286.78,0.00021567,2]
[350040810,1737588645801,-500.0,0.00021567,2]
[350040811,1737588645810,-500.0,0.00021567,2]
[350040812,1737588645819,-501.29731424,0.00021567,2]
[350040813,1737588645829,-500.0,0.00021567,2]
[350040814,1737588645838,-500.0,0.00021567,2]
[350040815,1737588645847,-499.12099837,0.00021567,2]
[350040816,1737588645856,-2989.18,0.00021567,2]
[350040817,1737588645865,-363.37186607,0.00021567,2]
[350040818,1737588645874,-500.0,0.00021567,2]
[350040819,1737588645885,-500.0,0.00021567,2]
[350040820,1737588645897,-500.0,0.00021567,2]
[350040821,1737588645906,-497.76867798,0.00021567,2]
[350040822,1737588645915,-5284.7,0.00021567,2]
[350040823,1737588645925,-161.91605726,0.00021567,2]
[350040824,1737588645934,-500.0,0.00021567,2]
[350040825,1737588645943,-804.58,0.00021567,2]
[350040826,1737588645952,-561.04270112,0.00021567,2]
[350040827,1737588645961,-500.0,0.00021567,2]
[350040828,1737588645970,-500.0,0.00021567,2]
[350040829,1737588645980,-500.0,0.00021567,2]
[350040830,1737588645989,-500.0,0.00021567,2]
[350040831,1737588645999,-1124.15,0.00021567,2]
[350040832,1737588646008,-500.0,0.00021567,2]
[350040833,1737588646017,-500.0,0.00021567,2]
[350040834,1737588646027,-500.0,0.00021567,2]
[350040835,1737588646036,-1035.24,0.00021567,2]
[350040836,1737588646045,-500.0,0.00021568,2]
[350040837,1737588646055,-500.0,0.00021568,2]
[350040838,1737588646064,-500.0,0.00021568,2]
[350040839,1737588646074,-500.0,0.00021568,2]
[350040840,1737588646084,-500.0,0.00021568,2]
[350040841,1737588646093,-500.0,0.00021568,2]
[350040842,1737588646103,-500.0,0.00021568,2]
[350040843,1737588646112,-500.0,0.00021568,2]
[350040844,1737588646121,-500.0,0.00021568,2]
[350040845,1737588646131,-500.0,0.00021568,2]
[350040846,1737588646145,-500.0,0.00021568,2]
[350040847,1737588646155,-500.0,0.00021568,2]
[350040848,1737588646165,-500.0,0.00021568,2]
[350040849,1737588646174,-500.0,0.00021568,2]
[350040850,1737588646184,-500.0,0.00021568,2]
[350040851,1737588646193,-500.0,0.00021573,2]
[350040852,1737588646203,-150.0,0.00021573,2]
[350040853,1737588646212,-418.9605331,0.00021584,2]
[350040854,1737588646222,-1077.2,0.00021599,2]
[350040855,1737588646232,-582.14,0.00021599,2]
[350040856,1737588646241,-1158.15,0.00021599,2]
[350040857,1737588646251,-500.0,0.00021599,2]
[350040858,1737588646260,-500.0,0.00021599,2]
[350040859,1737588646270,-500.0,0.00021599,2]
[350040860,1737588646279,-827.47,0.00021599,2]
[350040861,1737588646289,-428.334612,0.00021599,2]
[350040862,1737588646298,-500.0,0.00021599,2]
[350040863,1737588646308,-500.0,0.00021599,2]
[350040864,1737588646317,-500.0,0.00021599,2]
[350040865,1737588646326,-500.0,0.00021599,2]
[350040866,1737588646335,-500.0,0.00021599,2]
[350040867,1737588646345,-521.59,0.00021599,2]
[350040868,1737588646355,-615.65,0.00021599,2]
[350040869,1737588646365,-540.365352,0.00021599,2]
[350040871,1737588646375,-158.602003,0.00021599,2]
[350040873,1737588646386,-1311.22,0.00021599,2]
[350040875,1737588646396,-584.46,0.00021599,2]
[350040877,1737588646406,-160.687533,0.00021599,2]
[350040878,1737588646417,-881.35,0.00021599,2]
[350040879,1737588646427,-500.0,0.00021599,2]
[350040880,1737588646436,-500.0,0.00021599,2]
[350040881,1737588646445,-500.0,0.00021599,2]
[350040882,1737588646456,-794.07,0.00021599,2]
[350040883,1737588646466,-2036.67,0.00021599,2]
[350040884,1737588646475,-1561.63,0.00021599,2]
[350040885,1737588646484,-1651.63,0.00021599,2]
[350040886,1737588646495,-186.466886,0.00021599,2]
[350040887,1737588646504,-638.45,0.00021599,2]
[350040888,1737588646514,-500.0,0.00021599,2]
[350040889,1737588646523,-715.8,0.00021599,2]
[350040890,1737588646533,-500.0,0.00021599,2]
[350040891,1737588646542,-1678.62,0.00021599,2]
[350040892,1737588646552,-822.2,0.00021599,2]
[350040893,1737588646562,-155.619837,0.00021599,2]
[350040894,1737588646571,-630.29,0.00021599,2]
[350040895,1737588646580,-159.35691,0.00021599,2]
[350040896,1737588646590,-161.824447,0.00021599,2]
[350040897,1737588646599,-501.9047067,0.00021599,2]
[350040898,1737588646608,-500.0,0.00021599,2]
[350040899,1737588646617,-962.36,0.00021599,2]
[350040900,1737588646627,-166.108841,0.00021599,2]
[350040901,1737588646640,-1223.81,0.00021599,2]
[350040902,1737588646649,-790.06,0.00021599,2]
[350040903,1737588646659,-2233.36,0.00021599,2]
[350040904,1737588646668,-1116.91,0.00021599,2]
[350040905,1737588646677,-166.533177,0.00021599,2]
[350040906,1737588646687,-2405.57,0.00021599,2]
[350040907,1737588646696,-1557.04,0.00021599,2]
[350040908,1737588646705,-5000.0,0.000216,2]
[350040909,1737588646714,-16195.2609,0.000216,2]
[350040910,1737588646723,-95156.8718,0.000216,2]
[350040911,1737588646732,-1528.39169353,0.00021611,2]
[350040912,1737588646742,-692.25,0.00021643,2]
[350040913,1737588646752,-500.0,0.00021643,2]
[350040914,1737588646761,-500.0,0.00021643,2]
[350040915,1737588646770,-982.92,0.00021643,2]
[350040916,1737588646780,-1449.15,0.00021643,2]
[350040917,1737588646789,-1447.07,0.00021643,2]
[350040918,1737588646798,-945.65,0.00021643,2]
[350040919,1737588646807,-1267.16,0.00021643,2]
[350040920,1737588646817,-597.02,0.00021643,2]
[350040921,1737588646826,-1722.24,0.00021643,2]
[350040922,1737588646835,-673.01,0.00021643,2]
[350040923,1737588646845,-716.85,0.00021643,2]
[350040924,1737588646854,-1651.07,0.00021643,2]
[350040925,1737588646863,-581.16,0.00021643,2]
[350040926,1737588646873,-2649.57,0.00021643,2]
[350040927,1737588646882,-500.0,0.00021643,2]
[350040928,1737588646896,-500.0,0.00021643,2]
[350040929,1737588646906,-684.71,0.00021643,2]
[350040930,1737588646915,-449.68089488,0.00021643,2]
[350040931,1737588646925,-2456.01,0.00021643,2]
[350040932,1737588646935,-1112.05,0.00021643,2]
[350040933,1737588646944,-500.0,0.00021643,2]
[350040934,1737588646954,-162.99556977,0.00021643,2]
[350040935,1737588646964,-502.34,0.00021643,2]
[350040936,1737588646973,-500.0,0.00021643,2]
[350040937,1737588646983,-500.0,0.00021643,2]
[350040938,1737588646992,-1528.39169353,0.00021659,2]
[350040939,1737588647001,-1500.0,0.000217,7]
[350040940,1737588647010,-156.00387339,0.000217,2]
[350040941,1737588647020,-370.70184505,0.000217,2]
[350040942,1737588647029,-500.0,0.000217,2]
[350040943,1737588647038,-500.0,0.000217,2]
[350040944,1737588647047,-500.0,0.000217,2]
[350040945,1737588647056,-500.0,0.000217,2]
[350040946,1737588647066,-245.29278331,0.000217,2]
[350040947,1737588647075,-500.0,0.000217,2]
[350040948,1737588647084,-500.0,0.000217,2]
[350040949,1737588647093,-500.0,0.000217,2]
[350040950,1737588647102,-500.0,0.000217,2]
[350040951,1737588647111,-500.0,0.000217,2]
[350040952,1737588647120,-500.0,0.000217,2]
[350040953,1737588647129,-500.0,0.000217,2]
[350040954,1737588647144,-500.0,0.000217,2]
[350040955,1737588647153,-473.27664543,0.000217,2]
[350040956,1737588647162,-500.0,0.000217,2]
[350040957,1737588647172,-500.0,0.000217,2]
[350040958,1737588647181,-500.0,0.000217,2]
[350040959,1737588647190,-500.0,0.000217,2]
[350040960,1737588647200,-500.0,0.000217,2]
[350040961,1737588647209,-500.0,0.000217,2]
[350040962,1737588647218,-500.0,0.000217,2]
[350040963,1737588647227,-500.0,0.000217,2]
[350040964,1737588647237,-500.0,0.000217,2]
[350040965,1737588647246,-500.0,0.000217,2]
[350040966,1737588647255,-500.0,0.000217,2]
[350040967,1737588647264,-500.0,0.000217,2]
[350040968,1737588647273,-500.0,0.000217,2]
[350040969,1737588647282,-500.0,0.000217,2]
[350040970,1737588647292,-500.0,0.000217,2]
[350040971,1737588647301,-505.04635782,0.000217,2]
[350040972,1737588647310,-548.02900469,0.000217,2]
[350040973,1737588647319,-500.0,0.000217,2]
[350040974,1737588647328,-500.0,0.000217,2]
[350040975,1737588647337,-500.0,0.000217,2]
[350040976,1737588647346,-500.0,0.000217,2]
[350040977,1737588647355,-500.0,0.000217,2]
[350040978,1737588647364,-500.0,0.000217,2]
[350040979,1737588647373,-500.0,0.000217,2]
[350040980,1737588647383,-500.0,0.000217,2]
[350040981,1737588647397,-500.0,0.000217,2]
[350040982,1737588647407,-500.0,0.000217,2]
[350040983,1737588647419,-500.0,0.000217,2]
[350040984,1737588647428,-525.82582656,0.000217,2]
[350040985,1737588647437,-694.39,0.000217,2]
[350040986,1737588647447,-500.0,0.000217,2]
[350040987,1737588647457,-500.0,0.000217,2]
[350040988,1737588647467,-500.0,0.000217,2]
[350040989,1737588647476,-500.0,0.000217,2]
[350040990,1737588647629,-500.0,0.000217,2]
[350040991,1737588647644,-500.0,0.000217,2]
[350040992,1737588647654,-500.0,0.000217,2]
[350040993,1737588647663,-175.09883082,0.000217,2]
[350040994,1737588647673,-500.0,0.000217,2]
[350040995,1737588647683,-500.0,0.000217,2]
[350040996,1737588647692,-500.0,0.000217,2]
[350040997,1737588647701,-500.0,0.000217,2]
[350040998,1737588647710,-503.36074831,0.000217,2]
[350040999,1737588647719,-500.0,0.000217,2]
[350041000,1737588647729,-181.26950855,0.000217,2]
[350041001,1737588647739,-500.0,0.000217,2]
[350041002,1737588647748,-500.0,0.000217,2]
[350041003,1737588647757,-500.0,0.000217,2]
[350041004,1737588647766,-500.0,0.000217,2]
[350041005,1737588647776,-500.0,0.000217,2]
[350041006,1737588647786,-500.0,0.000217,2]
[350041007,1737588647795,-500.0,0.000217,2]
[350041008,1737588647805,-500.0,0.000217,2]
[350041009,1737588647814,-500.0,0.000217,2]
[350041010,1737588647823,-500.0,0.000217,2]
[350041011,1737588647832,-500.0,0.000217,2]
[350041012,1737588647841,-500.0,0.000217,2]
[350041013,1737588647850,-500.0,0.000217,2]
[350041014,1737588647859,-500.0,0.000217,2]
[350041015,1737588647868,-500.0,0.000217,2]
[350041016,1737588647877,-500.0,0.000217,2]
[350041017,1737588647888,-500.0,0.000217,2]
[350041018,1737588647898,-500.0,0.000217,2]
[350041019,1737588647908,-504.55324492,0.000217,2]
[350041020,1737588647917,-525.29155476,0.000217,2]
[350041021,1737588647927,-500.0,0.000217,2]
[350041022,1737588647936,-500.0,0.000217,2]
[350041023,1737588647945,-489.34553497,0.000217,2]
[350041024,1737588647955,-152.82163206,0.000217,2]
[350041025,1737588647965,-500.0,0.000217,2]
[350041026,1737588647975,-500.0,0.000217,2]
[350041027,1737588647984,-500.0,0.000217,2]